bitfinex/quotes_ETHUSD_20250518
["timestamp","ask_amount","ask_price","bid_price","bid_amount"]
[1747597181569,13.56837516,2434.1,2432.6,1.46941]
[1747597181772,4.10931898,2433.5,2432.9,4.11018222]
[1747597182082,11.11718237,2433.7,2433.0,13.156]
[1747597182083,4.10956637,2433.4,2433.0,13.156]
[1747597182681,4.10919024,2433.6,2433.0,13.156]
[1747597182880,7.0080793,2433.7,2432.7,1.5381]
[1747597183081,4.10994279,2433.2,2433.1,13.156]
[1747597183451,7.0080793,2433.7,2433.1,13.156]
[1747597183657,7.0080793,2433.7,2433.2,17.743]
[1747597183857,7.0080793,2433.7,2433.2,20.8329]
[1747597184084,4.10911929,2433.7,2433.3,1.5676]
[1747597184286,5.63202393,2434.7,2433.3,1.5676]
[1747597184454,4.10872423,2433.9,2433.3,5.67718306]
[1747597184653,4.10778836,2434.4,2433.4,4.10946765]
[1747597184854,4.10862624,2434.0,2433.4,6.76046442]
[1747597185085,25.18945091,2434.6,2433.4,2.65099677]
[1747597185288,4.10887021,2433.8,2433.3,5.67712021]
[1747597185591,18.71203741,2434.7,2433.6,4.10898571]
[1747597185886,4.10702621,2434.9,2433.7,18.83252046]
[1747597186086,8.0,2434.9,2433.7,14.7236]
[1747597186266,4.10677618,2435.0,2433.7,14.7236]
[1747597186464,4.10711352,2434.8,2433.7,1.5676]
[1747597186675,4.10757293,2434.6,2433.8,13.156]
[1747597186884,4.10874439,2433.9,2433.7,1.5676]
[1747597187088,4.10828953,2434.2,2433.9,13.156]
[1747597187390,4.10805377,2434.3,2433.9,13.156]
[1747597187563,4.10790339,2434.4,2433.9,13.156]
[1747597187766,8.0,2434.8,2434.1,4.10823678]
[1747597187767,4.10714751,2434.8,2434.1,4.10823678]
[1747597187969,4.10754953,2434.6,2434.2,17.742]
[1747597188190,4.10733242,2434.7,2434.2,17.742]
[1747597188391,4.10705496,2434.9,2434.2,21.85011502]
[1747597188556,4.10713071,2434.8,2434.4,1.5851]
[1747597188753,4.10668901,2435.1,2434.5,13.156]
[1747597188957,4.1067945,2435.0,2434.5,17.2634759]
[1747597189184,4.10715271,2434.8,2434.5,13.156]
[1747597189788,4.10673727,2435.1,2434.5,13.156]
[1747597189953,4.10691938,2435.0,2434.5,13.156]
[1747597190158,14.659,2435.9,2434.5,13.156]
[1747597190496,4.10576449,2435.6,2434.5,13.156]
[1747597190693,4.10695379,2434.9,2434.5,13.156]
[1747597190894,4.10686283,2435.0,2434.5,13.156]
[1747597191592,4.10576449,2435.6,2434.5,15.0408804]
[1747597191761,4.1064292,2435.3,2434.7,4.1071637]
[1747597191968,4.10542737,2435.8,2434.7,0.55]
[1747597192158,4.10623651,2435.4,2434.8,4.10703111]
[1747597192686,4.10623651,2435.4,2434.9,4.1069272]
[1747597192887,4.10599573,2435.5,2435.0,4.10674139]
[1747597193083,4.1047533,2436.2,2435.2,1.5826]
[1747597193413,4.10614024,2435.4,2435.2,1.5826]
[1747597193785,4.10643889,2435.2,2435.1,17.738]
[1747597193966,4.10643889,2435.2,2435.1,30.795]
[1747597194367,12.10643889,2435.2,2435.1,30.795]
[1747597194867,25.15343889,2435.2,2435.1,30.795]
[1747597195674,25.15143889,2435.2,2435.1,30.795]
[1747597195893,25.53043801,2435.2,2435.1,30.795]
[1747597196284,25.52843801,2435.2,2435.1,30.795]
[1747597196596,25.52843801,2435.2,2433.1,14.13984176]
[1747597196597,4.10829464,2434.1,2434.0,1.5826]
[1747597196908,4.10829464,2434.1,2434.0,32.3756]
[1747597197072,4.10789564,2434.4,2434.0,32.3756]
[1747597197073,8.0,2434.6,2434.0,32.3756]
[1747597197397,4.10829464,2434.1,2434.0,32.3756]
[1747597198003,4.10742818,2434.7,2434.0,32.3756]
[1747597198189,4.10694484,2434.9,2434.0,32.3756]
[1747597198391,4.1079401,2434.4,2434.0,32.3756]
[1747597198570,8.0,2434.9,2434.1,5.79107772]
[1747597198571,4.10694484,2434.9,2434.1,5.79107772]
[1747597198771,0.47737516,2435.0,2434.2,1.5826]
[1747597198984,4.10747855,2434.6,2434.3,13.057]
[1747597199184,4.10758585,2434.6,2434.3,13.057]
[1747597199504,4.10722029,2434.8,2434.4,0.74219483]
[1747597200208,4.10761963,2434.5,2434.3,13.057]
[1747597200384,4.10795711,2434.3,2434.2,1.5826]
[1747597200901,4.10795711,2434.3,2434.1,5.75]
[1747597200902,4.10829464,2434.1,2434.0,17.737]
[1747597201103,4.10829464,2434.1,2434.0,30.793]
[1747597201293,4.10812587,2434.2,2434.0,30.793]
[1747597201294,4.10816732,2434.2,2434.0,30.793]
[1747597201492,4.10794009,2434.4,2434.0,32.35638334]
[1747597201703,4.10796231,2434.3,2434.0,32.35638334]
[1747597201869,13.025,2434.9,2434.0,32.35638334]
[1747597202069,4.10797398,2434.3,2434.0,19.30038334]
[1747597202276,4.10746719,2434.6,2434.1,13.056]
[1747597202484,4.10716322,2434.8,2434.1,13.056]
[1747597202485,17.12781059,2435.0,2434.2,0.04108078]
[1747597202812,4.10684345,2435.0,2434.1,13.056]
[1747597202988,4.1074265,2434.7,2434.1,17.16428622]
[1747597203307,4.10714547,2434.8,2434.2,5.07272862]
[1747597203612,4.10721132,2434.8,2434.3,4.10786004]
[1747597203780,0.37910524,2435.1,2434.4,4.10769695]
[1747597203980,0.37910524,2435.1,2434.2,18.08872862]
[1747597204174,0.37910524,2435.1,2434.2,22.19682824]
[1747597204175,4.1073014,2434.7,2434.2,22.19682824]
[1747597204396,4.10771828,2434.5,2434.3,4.08772253]
[1747597204593,4.10795711,2434.3,2434.2,1.5826]
[1747597204919,4.107877,2434.4,2434.2,1.5826]
[1747597205074,4.10795711,2434.3,2434.2,1.5826]
[1747597205634,2.02150524,2434.9,2434.1,13.056]
[1747597206015,4.10829464,2434.1,2434.0,17.737]
[1747597206211,4.10829464,2434.1,2434.0,30.793]
[1747597207096,13.75069464,2434.1,2434.0,17.737]
[1747597207509,4.10947645,2433.4,2433.3,17.738]
[1747597207744,4.10947645,2433.4,2433.3,13.057]
[1747597208191,13.75187645,2433.4,2433.3,13.057]
[1747597208392,4.11048997,2432.8,2432.7,13.057]
[1747597208597,4.10964533,2433.3,2432.0,1.5826]
[1747597208598,13.0,2432.9,2432.5,13.057]
[1747597208799,4.11082792,2432.6,2432.5,13.057]
[1747597209330,0.37910524,2433.1,2432.5,13.057]
[1747597209506,0.37910524,2433.1,2432.8,4.11034433]
[1747597209835,0.37910524,2433.1,2433.0,5.62715207]
[1747597210346,0.02369408,2433.1,2433.0,6.17715207]
[1747597210501,0.02369408,2433.1,2432.9,4.11030471]
[1747597210502,1.6484,2434.2,2432.9,1.517]
[1747597210820,4.10930758,2433.5,2430.8,0.005]
[1747597211024,9.6484,2432.7,2431.4,4.11282185]
[1747597211222,4.11133495,2432.3,2431.6,1.517]
[1747597211411,4.11213126,2431.9,2431.7,13.06]
[1747597211611,4.11198281,2432.0,2431.7,13.06]
[1747597211798,4.11099691,2432.5,2431.7,13.06]
[1747597211995,13.7591463,2432.7,2431.8,17.741]
[1747597212208,4.11118878,2432.4,2431.8,25.4961649]
[1747597212408,4.11134806,2432.3,2431.9,13.06]
[1747597212634,1.6484,2433.1,2431.8,17.741]
[1747597212838,4.11130235,2432.4,2431.9,13.06]
[1747597213038,4.11117278,2432.4,2431.9,17.17200811]
[1747597213239,4.11105734,2432.5,2431.9,17.17200811]
[1747597213552,4.11096323,2432.6,2432.0,5.62874073]
[1747597213748,4.11102807,2432.5,2432.0,5.62874073]
[1747597214158,4.11102807,2432.5,2432.0,1.517]
[1747597214307,4.11087086,2432.6,2432.1,4.11164134]
[1747597214506,4.11099799,2432.5,2432.0,5.62877391]
[1747597214707,4.1107917,2432.7,2432.0,1.517]
[1747597215007,4.11107933,2432.5,2432.0,1.517]
[1747597215206,17.09619597,2433.0,2432.0,1.517]
[1747597215437,4.1110232,2432.5,2432.0,1.517]
[1747597215746,1.95661156,2433.1,2432.1,4.11153648]
[1747597215906,4.11049866,2432.8,2432.3,4.11133495]
[1747597216107,4.11034314,2432.9,2432.4,5.75]
[1747597216306,4.11010237,2433.1,2432.6,1.5267]
[1747597216514,4.11058473,2432.8,2432.7,17.747]
[1747597217837,17.08658473,2432.8,2432.7,17.747]
[1747597218044,4.11167303,2432.1,2432.0,13.063]
[1747597219040,4.11137419,2432.3,2432.0,13.063]
[1747597219244,4.11167303,2432.1,2432.0,13.063]
[1747597219608,4.1118421,2432.0,2431.9,17.747]
[1747597219810,4.1118421,2432.0,2431.9,30.813]
[1747597220810,5.6509421,2432.0,2431.9,30.813]
[1747597221152,8.0,2432.6,2431.9,30.813]
[1747597221348,4.11153276,2432.2,2431.9,30.813]
[1747597221527,4.11153276,2432.2,2432.0,13.066]
[1747597221728,1.5391,2433.2,2432.0,13.066]
[1747597221926,0.47737516,2433.3,2432.6,1.5991]
[1747597222127,4.11026677,2433.0,2432.7,12.964]
[1747597222322,4.11026677,2433.0,2432.8,17.749]
[1747597222652,4.11004416,2433.1,2432.8,17.749]
[1747597222856,4.11015848,2433.0,2432.8,17.749]
[1747597223052,0.47737516,2433.3,2432.8,17.749]
[1747597223053,0.47737516,2433.3,2433.0,4.11013398]
[1747597223346,0.47737516,2433.3,2432.8,20.62438039]
[1747597223347,4.5871352,2433.3,2432.8,20.62438039]
[1747597223717,4.11017784,2433.0,2432.9,12.965]
[1747597223913,4.10978371,2433.3,2432.9,12.965]
[1747597224144,17.07068518,2433.9,2432.9,12.965]
[1747597224145,4.10959379,2433.4,2432.9,12.965]
[1747597224350,4.10880105,2433.8,2433.0,12.965]
[1747597224530,4.11011386,2433.1,2433.0,12.965]
[1747597224726,4.10998314,2433.1,2433.0,12.965]
[1747597224953,4.11032101,2432.9,2432.8,17.749]
[1747597225152,4.11032101,2432.9,2432.8,30.713]
[1747597225319,5.73462101,2432.9,2432.8,30.713]
[1747597225521,6.04615558,2432.9,2432.8,17.749]
[1747597225831,14.04615558,2432.9,2432.8,17.749]
[1747597226730,14.04615558,2432.9,2432.3,12.964]
[1747597226731,4.11116592,2432.4,2432.3,12.964]
[1747597227240,4.11167303,2432.1,2432.0,17.749]
[1747597227766,12.11167303,2432.1,2432.0,17.749]
[1747597228359,4.11370274,2430.9,2430.8,0.005]
[1747597228718,13.72680274,2430.9,2430.8,0.005]
[1747597229118,26.66780274,2430.9,2430.8,0.005]
[1747597229458,13.72680274,2430.9,2430.8,0.005]
[1747597229761,26.66680274,2430.9,2430.8,0.005]
[1747597229920,5.72680274,2430.9,2430.8,0.005]
[1747597230122,4.11358329,2431.0,2430.8,0.005]
[1747597230353,5.72602283,2431.4,2430.9,17.751]
[1747597230354,1.6131,2431.4,2430.9,17.751]
[1747597230734,4.11336432,2431.1,2431.0,12.965]
[1747597231142,0.5704,2430.6,2428.6,0.005]
[1747597231343,4.11494854,2430.2,2429.0,4.11689252]
[1747597231547,4.11536451,2430.0,2429.1,22.62707632]
[1747597231758,4.11397885,2430.8,2429.4,1.623]
[1747597231759,0.5704,2430.8,2429.4,1.623]
[1747597232076,0.37706425,2430.9,2430.0,1.623]
[1747597232226,0.37706425,2430.9,2430.1,32.346]
[1747597232639,4.11468559,2430.4,2430.1,32.346]
[1747597232958,0.37706425,2430.9,2430.1,19.378]
[1747597233277,4.11488766,2430.2,2430.1,19.378]
[1747597233454,4.11488766,2430.2,2430.1,30.723]
[1747597233656,12.929,2430.7,2430.1,30.723]
[1747597233857,4.11467646,2430.4,2430.1,30.723]
[1747597234064,4.11467646,2430.4,2430.1,17.755]
[1747597234377,4.11471834,2430.3,2430.2,12.968]
[1747597234673,4.11457323,2430.4,2430.2,12.968]
[1747597234863,12.928,2430.8,2430.2,12.968]
[1747597235290,1.5414,2430.3,2428.6,0.005]
[1747597235475,4.11505699,2430.1,2428.7,12.971]
[1747597235775,4.11680713,2429.1,2428.8,1.2476]
[1747597235978,4.11680713,2429.1,2428.7,12.971]
[1747597236176,4.11736382,2428.8,2428.6,0.005]
[1747597236469,4.11713062,2428.9,2428.6,0.005]
[1747597236676,8.0,2429.4,2428.7,12.971]
[1747597236845,12.923,2429.3,2428.7,12.971]
[1747597237178,4.11695659,2429.0,2428.7,12.971]
[1747597237476,4.11725955,2428.8,2428.7,12.971]
[1747597238666,4.1163407,2429.4,2428.8,5.75116561]
[1747597238862,12.922,2429.6,2428.8,5.7512577]
[1747597238863,4.11652322,2429.3,2428.8,5.7512577]
[1747597239076,12.922,2429.6,2428.8,1.634]
[1747597239278,1.5414,2430.0,2428.8,5.75114412]
[1747597239279,4.11622173,2429.5,2428.8,5.75114412]
[1747597239467,4.11596867,2429.6,2428.8,1.634]
[1747597239662,12.92,2429.9,2428.8,3.40235]
[1747597239862,4.11707031,2429.0,2428.8,1.634]
[1747597240189,4.11742907,2428.7,2428.6,0.005]
[1747597240968,4.11742907,2428.7,2428.6,12.982]
[1747597241494,4.11713508,2428.9,2428.6,12.982]
[1747597241794,4.11589037,2429.7,2428.7,1.5606]
[1747597241795,8.0,2429.6,2428.7,1.5606]
[1747597241969,4.11725955,2428.8,2428.6,0.005]
[1747597242174,4.11742907,2428.7,2428.6,0.005]
[1747597242499,4.11726904,2428.8,2428.6,12.982]
[1747597242822,4.11718378,2428.9,2428.6,12.982]
[1747597242973,4.11736294,2428.8,2428.6,12.982]
[1747597243179,4.11719363,2428.9,2428.6,12.982]
[1747597243361,4.11742907,2428.7,2428.6,0.005]
[1747597243989,12.11742907,2428.7,2428.6,0.005]
[1747597244197,13.76742907,2428.7,2428.6,0.005]
[1747597244907,26.67542907,2428.7,2428.6,0.005]
[1747597245600,4.11742907,2428.7,2428.6,12.984]
[1747597245773,5.76610871,2429.5,2428.6,12.984]
[1747597245982,1.65,2429.5,2428.7,17.77]
[1747597246176,4.11679244,2429.1,2428.7,17.77]
[1747597246375,17.02029498,2429.4,2428.8,1.5361]
[1747597246577,4.11626598,2429.4,2428.9,12.982]
[1747597246778,4.11701988,2429.0,2428.9,12.982]
[1747597246984,4.11725955,2428.8,2428.7,17.77]
[1747597247192,4.11742907,2428.7,2428.6,0.005]
[1747597247391,17.02142907,2428.7,2428.6,0.005]
[1747597247673,4.11742907,2428.7,2428.6,0.005]
[1747597247874,17.02042907,2428.7,2428.6,0.005]
[1747597248275,26.67042907,2428.7,2428.6,0.005]
[1747597248476,26.67042907,2428.7,2427.4,1.5361]
[1747597248477,2.471,2428.3,2426.6,34.32334711]
[1747597248668,2.471,2427.6,2426.6,34.32334711]
[1747597248974,10.48834208,2428.0,2426.6,34.32334711]
[1747597248975,4.12082251,2426.7,2426.6,34.32334711]
[1747597249195,17.01982251,2426.7,2426.6,34.32334711]
[1747597249398,25.01982251,2426.7,2426.6,34.32334711]
[1747597249702,26.93219273,2426.7,2426.6,34.32334711]
[1747597249904,14.03319273,2426.7,2426.6,34.32334711]
[1747597250402,26.62072251,2426.7,2426.6,34.32334711]
[1747597250941,26.61972251,2426.7,2426.6,34.32334711]
[1747597251593,14.03158743,2426.7,2426.6,34.32334711]
[1747597251793,26.92558743,2426.7,2426.6,34.32334711]
[1747597251994,14.03158743,2426.7,2426.6,34.32334711]
[1747597252400,33.19817943,2426.7,2426.6,34.32334711]
[1747597252800,30.06089543,2426.7,2426.6,34.32334711]
[1747597253134,14.03158743,2426.7,2426.6,34.32334711]
[1747597253332,19.45562143,2426.7,2426.6,7.66818306]
[1747597253535,4.12354129,2425.1,2425.0,5.69242424]
[1747597253720,4.12354129,2425.1,2425.0,37.89582424]
[1747597253919,4.12184163,2426.1,2425.0,37.89582424]
[1747597254231,4.12354129,2425.1,2425.0,24.99782424]
[1747597254431,4.12334606,2425.3,2425.0,37.89582424]
[1747597254623,4.12295902,2425.5,2425.0,37.89582424]
[1747597254820,4.12264468,2425.7,2425.1,3.78958242]
[1747597255033,4.12267766,2425.7,2425.1,3.78958242]
[1747597255251,18.69265459,2426.5,2425.2,4.12325931]
[1747597255252,4.12150187,2426.3,2425.2,4.12325931]
[1747597255401,4.12316066,2425.4,2425.2,1.5243]
[1747597255599,4.12150187,2426.3,2425.2,3.57455256]
[1747597255908,14.57142644,2426.5,2425.2,3.57455256]
[1747597256108,4.12320125,2425.3,2425.2,1.5243]
[1747597256438,4.12320125,2425.3,2425.2,14.4273]
[1747597256608,4.12354129,2425.1,2425.0,23.47642424]
[1747597256931,4.12342788,2425.2,2425.0,36.37942424]
[1747597257131,4.12291425,2425.5,2425.1,0.54094064]
[1747597257431,4.12265445,2425.7,2425.2,1.5243]
[1747597257618,19.46242644,2426.5,2425.2,1.5243]
[1747597257798,4.12150187,2426.3,2425.2,1.5243]
[1747597257995,4.12248188,2425.8,2425.3,12.903]
[1747597258244,4.12286126,2425.5,2425.2,1.5243]
[1747597258425,4.12303125,2425.4,2425.3,12.903]
[1747597258735,4.12320125,2425.3,2425.2,1.5243]
[1747597258942,4.12312604,2425.4,2425.2,14.4293]
[1747597259124,4.12218145,2425.9,2425.2,14.4293]
[1747597259327,4.12317799,2425.4,2425.3,12.905]
[1747597259700,4.12320125,2425.3,2425.2,1.5243]
[1747597260048,4.12279905,2425.6,2425.2,16.92937242]
[1747597260257,4.12181012,2426.2,2425.2,16.92937242]
[1747597260415,4.12064588,2426.9,2425.3,1.5242]
[1747597260416,4.12218163,2425.9,2425.3,1.5242]
[1747597260740,4.12238183,2425.8,2425.4,12.887]
[1747597260935,4.12285493,2425.6,2425.5,12.905]
[1747597261437,4.12274757,2425.6,2425.5,12.906]
[1747597262620,4.12269129,2425.6,2425.5,12.906]
[1747597262935,4.12269129,2425.6,2425.0,23.47642424]
[1747597262936,4.12354129,2425.1,2425.0,23.47642424]
[1747597263157,25.00654129,2425.1,2425.0,23.47642424]
[1747597263651,30.69332229,2425.1,2425.0,5.69242424]
[1747597263938,24.93013204,2425.1,2425.0,5.60034681]
[1747597264141,25.31235104,2425.1,2425.0,5.60034681]
[1747597264346,15.21406404,2425.1,2425.0,5.60034681]
[1747597264504,25.31135104,2425.1,2425.0,5.60034681]
[1747597265027,25.31135104,2425.1,2425.0,18.51034681]
[1747597265028,4.12354129,2425.1,2425.0,18.51034681]
[1747597265366,12.12354129,2425.1,2425.0,5.60034681]
[1747597265529,12.43734713,2425.1,2425.0,5.60034681]
[1747597265725,12.12354129,2425.1,2425.0,5.60034681]
[1747597265931,4.12354129,2425.1,2425.0,5.60034681]
[1747597266538,4.12354129,2425.1,2425.0,18.51034681]
[1747597267319,0.47737516,2426.0,2425.0,24.11376934]
[1747597267518,0.47737516,2426.0,2425.0,5.60034681]
[1747597267519,0.34314995,2425.9,2425.0,5.60034681]
[1747597267719,4.12354129,2425.1,2425.0,5.60034681]
[1747597267933,12.12354129,2425.1,2425.0,5.60034681]
[1747597268445,12.12354129,2425.1,2425.0,20.02704681]
[1747597268446,4.12354129,2425.1,2425.0,20.02704681]
[1747597268619,4.12354129,2425.1,2425.0,18.51134681]
[1747597269012,4.12354129,2425.1,2425.0,23.40234681]
[1747597269228,4.12354129,2425.1,2425.0,36.31334681]
[1747597269653,4.12354129,2425.1,2425.0,23.40234681]
[1747597269975,4.12354129,2425.1,2425.0,34.5379263]
[1747597270274,4.12354129,2425.1,2425.0,21.6269263]
[1747597272176,4.12354129,2425.1,2425.0,34.5389263]
[1747597272381,4.12066849,2425.1,2425.0,21.6269263]
[1747597272522,4.12066849,2425.1,2425.0,3.8249263]
[1747597272727,4.12066849,2425.1,2425.0,16.7369263]
[1747597273637,4.12066849,2425.1,2425.0,3.8249263]
[1747597273968,4.12066849,2425.1,2425.0,16.7369263]
[1747597274262,4.12066849,2425.1,2425.0,20.1617062]
[1747597274439,4.12066849,2425.1,2425.0,5.4150263]
[1747597274764,4.12066849,2425.1,2425.0,18.3270263]
[1747597275167,4.12334587,2425.3,2425.0,18.3270263]
[1747597275349,4.12244415,2425.8,2425.2,4.12328376]
[1747597275551,4.12184163,2426.1,2425.4,1.633]
[1747597275756,4.1226636,2425.7,2425.5,12.912]
[1747597276050,4.12150187,2426.3,2425.5,11.53142289]
[1747597276253,4.12230216,2425.9,2425.7,1.633]
[1747597276456,4.59879771,2426.4,2425.7,1.633]
[1747597276626,4.12150187,2426.3,2425.7,1.633]
[1747597276827,0.47737516,2426.4,2425.7,4.72974229]
[1747597277054,0.47737516,2426.4,2425.8,1.5455]
[1747597277231,0.3779,2427.4,2426.3,0.55]
[1747597277232,4.11967288,2427.4,2426.3,0.55]
[1747597277427,4.11999782,2427.2,2426.6,1.5455]
[1747597277733,4.12055126,2426.9,2426.7,30.715]
[1747597278029,4.12065271,2426.8,2426.7,30.715]
[1747597278454,4.11878578,2427.9,2426.7,30.715]
[1747597278735,4.12051628,2426.9,2426.7,30.715]
[1747597278929,4.12065271,2426.8,2426.7,17.803]
[1747597279164,4.12065271,2426.8,2426.7,30.715]
[1747597279541,4.12065271,2426.8,2426.7,17.803]
[1747597279729,4.12065271,2426.8,2426.7,30.712]
[1747597281462,12.49974163,2426.1,2426.0,30.708]
[1747597281651,4.12354129,2425.1,2425.0,3.8249263]
[1747597281966,4.12342171,2425.2,2425.0,34.5329263]
[1747597282132,4.12273716,2425.6,2425.0,38.65653092]
[1747597282333,4.12253704,2425.7,2425.0,34.5329263]
[1747597282554,20.85,2426.5,2425.1,14.5003]
[1747597282866,4.12220069,2425.9,2425.4,0.55]
[1747597283047,0.22345418,2426.4,2425.5,0.63234246]
[1747597283243,4.12150187,2426.3,2425.5,0.63234246]
[1747597283446,4.12256931,2425.7,2425.6,12.851]
[1747597283757,4.12252133,2425.7,2425.6,12.851]
[1747597284173,4.12241123,2425.8,2425.6,12.851]
[1747597284381,4.12082251,2426.7,2425.8,1.6195]
[1747597284552,4.12198173,2426.1,2425.9,17.8]
[1747597284751,4.12201154,2426.0,2425.9,17.56]
[1747597285683,4.1210883,2426.6,2426.0,4.12189131]
[1747597285850,4.12014338,2427.1,2426.2,1.6195]
[1747597286180,4.12150187,2426.3,2426.2,1.6195]
[1747597286379,4.12150187,2426.3,2426.2,14.4695]
[1747597287913,4.12150187,2426.3,2425.9,17.56]
[1747597287914,4.12201154,2426.0,2425.9,17.56]
[1747597288188,4.12201154,2426.0,2425.9,30.41]
[1747597288359,4.12175513,2426.2,2425.9,30.41]
[1747597288546,4.12048292,2426.9,2425.9,33.61295]
[1747597288751,4.12116216,2426.5,2425.9,37.73512494]
[1747597288952,4.34305677,2427.3,2426.3,4.12136636]
[1747597289193,4.12012529,2427.2,2426.5,1.6266]
[1747597289365,4.11999058,2427.2,2426.8,0.55]
[1747597289563,4.11999058,2427.2,2426.9,17.798]
[1747597289785,4.11999058,2427.2,2427.0,12.835]
[1747597289983,4.12031314,2427.0,2426.9,17.798]
[1747597290284,4.12031314,2427.0,2426.9,30.648]
[1747597291289,12.12031314,2427.0,2426.9,17.798]
[1747597291450,12.12031314,2427.0,2426.8,12.848]
[1747597291451,12.49838292,2426.9,2426.8,12.848]
[1747597291656,25.32938292,2426.9,2426.8,12.848]
[1747597291856,4.12048292,2426.9,2426.8,12.848]
[1747597292988,4.12150187,2426.3,2426.2,17.796]
[1747597293162,4.12150187,2426.3,2426.2,30.644]
[1747597293990,4.12150187,2426.3,2426.2,17.796]
[1747597294287,12.12150187,2426.3,2426.2,17.796]
[1747597295076,13.12150187,2426.3,2426.2,17.796]
[1747597295883,5.50192127,2426.3,2426.2,17.796]
[1747597296876,4.50192127,2426.3,2426.2,17.796]
[1747597297071,4.12150187,2426.3,2426.2,17.796]
[1747597297670,4.11997363,2427.2,2426.2,17.796]
[1747597297990,4.12150187,2426.3,2426.2,17.796]
[1747597298588,4.12060139,2426.9,2426.2,17.796]
[1747597298783,4.12014338,2427.1,2426.2,17.796]
[1747597298982,4.12150187,2426.3,2426.2,17.796]
[1747597299571,4.49390631,2426.3,2426.2,16.14805605]
[1747597299796,4.49390631,2426.3,2426.2,27.92582165]
[1747597299994,4.49390631,2426.3,2426.2,15.07682165]
[1747597300298,12.49390631,2426.3,2426.2,26.98844791]
[1747597300476,4.49390631,2426.3,2426.2,26.98844791]
[1747597300680,4.49390631,2426.3,2426.2,25.64919083]
[1747597301269,4.49390631,2426.3,2426.2,23.77422702]
[1747597301604,4.49390631,2426.3,2426.2,10.92522702]
[1747597301807,4.49390631,2426.3,2426.2,23.77322702]
[1747597302021,4.12354129,2425.1,2425.0,4.81172054]
[1747597302303,4.12343934,2425.2,2425.0,35.45572054]
[1747597302505,0.59613134,2426.3,2425.1,1.5225]
[1747597302712,4.12203226,2426.0,2425.5,1.5225]
[1747597302917,0.37240444,2425.9,2425.7,1.5225]
[1747597303326,4.12156274,2426.3,2425.8,4.12235138]
[1747597303479,0.38127176,2426.4,2425.9,17.8392131]
[1747597303677,8.87159838,2427.7,2426.5,1.5225]
[1747597303678,4.12045572,2427.0,2426.5,1.5225]
[1747597303925,4.12048292,2426.9,2426.6,25.655]
[1747597304275,4.12051805,2426.9,2426.6,25.655]
[1747597304481,4.12076443,2426.8,2426.7,25.655]
[1747597304717,4.12076443,2426.8,2426.7,17.798]
[1747597304915,4.12076443,2426.8,2426.7,30.648]
[1747597305278,4.12020063,2427.1,2426.7,30.648]
[1747597305507,4.1202282,2427.1,2426.7,34.29053028]
[1747597305713,4.1203218,2427.0,2426.7,34.29053028]
[1747597305893,4.12065271,2426.8,2426.7,30.648]
[1747597306234,4.12065271,2426.8,2426.7,17.798]
[1747597306398,4.12065271,2426.8,2426.7,30.648]
[1747597306577,4.12065271,2426.8,2426.7,30.77672029]
[1747597307523,12.11910808,2427.8,2426.7,30.77672029]
[1747597307685,4.11984199,2427.3,2426.8,4.67897203]
[1747597307886,4.11878578,2427.9,2426.8,4.67897203]
[1747597308214,4.12031314,2427.0,2426.9,12.97672029]
[1747597308581,4.12031314,2427.0,2426.9,0.12872029]
[1747597308786,4.12031314,2427.0,2426.9,12.97669908]
[1747597309409,8.0,2427.9,2426.9,12.97669908]
[1747597309597,4.12017176,2427.1,2426.9,12.97669908]
[1747597309796,4.11895543,2427.8,2427.0,1.6013]
[1747597309797,4.119718,2427.4,2427.0,1.6013]
[1747597309999,4.11946007,2427.6,2427.0,1.6013]
[1747597310199,0.22401837,2427.9,2427.0,1.6013]
[1747597310418,4.11976836,2427.4,2427.1,0.12869908]
[1747597310620,4.11952692,2427.5,2427.1,0.12869908]
[1747597310987,4.11875915,2428.0,2427.4,4.11949039]
[1747597311216,4.11840768,2428.2,2427.6,5.72048052]
[1747597311515,0.3779,2428.7,2427.7,30.641]
[1747597311516,4.11895543,2427.8,2427.7,30.641]
[1747597311731,4.11761722,2428.6,2427.8,4.11893768]
[1747597311883,4.11740197,2428.8,2427.9,1.5619]
[1747597312081,4.11824908,2428.3,2428.0,0.12869908]
[1747597312282,0.6372458,2428.4,2428.0,0.12869908]
[1747597312482,0.6372458,2428.4,2428.2,0.55]
[1747597312710,2.00749355,2428.9,2428.3,1.5619]
[1747597312900,4.11751671,2428.7,2428.4,25.563]
[1747597313099,4.11764817,2428.6,2428.3,1.69059908]
[1747597313299,4.11731836,2428.8,2428.4,12.782]
[1747597313588,1.26058222,2429.1,2428.4,12.782]
[1747597313589,1.26058222,2429.1,2428.4,16.8999252]
[1747597313804,4.11688206,2429.1,2428.5,4.24632776]
[1747597314024,4.11688206,2429.1,2428.6,17.791]
[1747597314429,4.11624269,2429.4,2428.7,1.72559908]
[1747597314591,4.11725955,2428.8,2428.7,1.72559908]
[1747597314935,4.11725955,2428.8,2428.7,12.91069908]
[1747597317598,4.11701205,2429.0,2428.7,12.91069908]
[1747597317903,4.11725955,2428.8,2428.7,0.12869908]
[1747597318139,4.11725955,2428.8,2428.7,12.90769908]
[1747597318958,4.11649221,2429.3,2428.8,1.5969]
[1747597319123,1.0149,2430.5,2429.0,1.6298]
[1747597319323,1.0149,2430.5,2429.2,1.6298]
[1747597319324,4.11454904,2430.4,2429.2,1.6298]
[1747597319724,4.11581447,2429.7,2429.2,1.6298]
[1747597319926,4.11454904,2430.4,2429.3,3.14111606]
[1747597320126,4.11607326,2429.5,2429.4,12.90569908]
[1747597320625,4.11607326,2429.5,2429.4,0.12869908]
[1747597320834,4.11607326,2429.5,2429.4,12.90569908]
[1747597321124,4.11607326,2429.5,2429.4,12.777]
[1747597322957,4.11530001,2430.0,2429.4,14.4068]
[1747597323162,5.12977282,2430.3,2429.5,17.78]
[1747597323337,4.11568453,2429.8,2429.5,17.78]
[1747597323526,1.0149,2430.7,2429.6,0.04115411]
[1747597323728,4.11531644,2430.0,2429.5,37.87393998]
[1747597323962,4.11421048,2430.6,2429.6,5.87765225]
[1747597324128,4.11497895,2430.2,2429.7,0.55]
[1747597324439,4.11497895,2430.2,2429.7,4.66572798]